fUSD/lending_fUSD_20260616
["ID","MTS","AMOUNT","RATE_DAILY","PERIOD"]
[425132970,1781542224000,-167.0,0.00037,120]
[425132969,1781542224000,-10000.0,0.00037,120]
[425132968,1781542224000,-500.0,0.00037,120]
[425132963,1781542224000,-60718.95,0.00037,120]
[425132966,1781542224000,-600.0,0.00037,120]
[425132965,1781542224000,-252.20518202,0.00037,60]
[425132964,1781542224000,-100000.0,0.00037,60]
[425132967,1781542224000,-5000.0,0.00037,120]
[425132971,1781542224000,-235.0,0.00037,30]
[425132973,1781542224000,-5000.0,0.00037,30]
[425132975,1781542224000,-205.36023714,0.00037092,120]
[425132982,1781542224000,-1246.74052059,0.000372,120]
[425132983,1781542224000,-1246.74052059,0.000372,120]
[425132979,1781542224000,-200.0,0.00037142,120]
[425132980,1781542224000,-229.439624,0.00037163,120]
[425132974,1781542224000,-1941.55733245,0.00037026,30]
[425132977,1781542224000,-1135.5,0.000371,30]
[425132978,1781542224000,-1140.4,0.000371,30]
[425132976,1781542224000,-589.74,0.000371,90]
[425132981,1781542224000,-228.93901298,0.000372,120]
[425132992,1781542225000,-150.0,0.00037277,120]
[425132985,1781542225000,-1246.74052059,0.000372,120]
[425132987,1781542225000,-201.11393869,0.00037205,30]
[425132986,1781542225000,-1246.74052059,0.000372,120]
[425132988,1781542225000,-260.31,0.0003721,60]
[425132989,1781542225000,-343.16874307,0.00037212,120]
[425132991,1781542225000,-500.0,0.0003726,120]
[425132990,1781542225000,-12313.17,0.00037224,30]
[425132984,1781542225000,-1246.74052059,0.000372,120]
[425132993,1781542225000,-151.0,0.00037352,30]
[425132994,1781542225000,-151.0,0.00037352,30]
[425132997,1781542225000,-151.0,0.00037352,30]
[425132996,1781542225000,-151.0,0.00037352,30]
[425132999,1781542225000,-151.0,0.00037352,30]
[425132998,1781542225000,-2049.750448,0.00037352,30]
[425133000,1781542225000,-2049.750448,0.00037352,30]
[425133001,1781542225000,-2049.750448,0.00037352,30]
[425133002,1781542225000,-407.840744,0.00037352,30]
[425133003,1781542225000,-2049.750457,0.00037352,30]
[425132995,1781542225000,-265.356591,0.00037352,30]
[425133010,1781542226000,-263.514088,0.00037352,30]
[425133009,1781542226000,-263.514088,0.00037352,30]
[425133008,1781542226000,-263.514088,0.00037352,30]
[425133011,1781542226000,-312.89558984,0.00037356,60]
[425133006,1781542226000,-407.840734,0.00037352,30]
[425133005,1781542226000,-407.840744,0.00037352,30]
[425133004,1781542226000,-407.840744,0.00037352,30]
[425133007,1781542226000,-263.514088,0.00037352,30]
[425133012,1781542226000,-1001.0,0.0003737,120]
[425133014,1781542226000,-1941.55,0.000374,30]
[425133013,1781542226000,-301.524,0.00037399,30]
[425133023,1781542226000,-281.02,0.00037482,120]
[425133022,1781542226000,-226.769576,0.00037467,120]
[425133021,1781542226000,-1211.36118787,0.00037457,30]
[425133019,1781542226000,-1092.30389323,0.00037457,120]
[425133024,1781542226000,-1858.76,0.00037482,120]
[425133018,1781542226000,-214.37,0.00037442,120]
[425133017,1781542226000,-204.88,0.00037442,120]
[425133016,1781542226000,-225.6,0.00037442,120]
[425133015,1781542226000,-150.0,0.00037425,120]
[425133020,1781542226000,-988.86627581,0.00037457,120]
[425133032,1781542227000,-226.33,0.00037482,120]
[425133025,1781542227000,-222.64,0.00037482,120]
[425133028,1781542227000,-150.0,0.00037482,120]
[425133027,1781542227000,-475.88,0.00037482,120]
[425133029,1781542227000,-260.8,0.00037482,120]
[425133030,1781542227000,-327.64,0.00037482,120]
[425133031,1781542227000,-586.54,0.00037482,120]
[425133033,1781542227000,-1260.23,0.00037482,120]
[425133026,1781542227000,-248.71,0.00037482,120]
[425133037,1781542227000,-171.57,0.00037482,120]
[425133034,1781542227000,-341.47,0.00037482,120]
[425133043,1781542227000,-175591.37748344,0.000375,120]
[425133041,1781542227000,-5000000.0,0.000375,120]
[425133040,1781542227000,-150.0,0.000375,120]
[425133042,1781542227000,-5000000.0,0.000375,120]
[425133038,1781542227000,-150.0,0.00037482,120]
[425133036,1781542227000,-653.2,0.00037482,120]
[425133035,1781542227000,-150.0,0.00037482,120]
[425133039,1781542227000,-4199.0,0.000375,30]
[425133238,1781542249000,-162.11372399,9.429e-05,2]
[425133266,1781542250000,-160.16,0.00010995,2]
[425133273,1781542250000,-433.0,0.00011408,2]
[425133269,1781542250000,-23.75803913,0.00011166,2]
[425133271,1781542250000,-11046.1,0.00011232,2]
[425133270,1781542250000,-142.90196087,0.00011166,2]
[425133268,1781542250000,-22180.57164726,0.00011099,2]
[425133272,1781542250000,-166.66,0.00011374,2]
[425133267,1781542250000,-1240.91,0.0001103,2]
[425133274,1781542250000,-1600.0,0.0001142,2]
[425133284,1781542250000,-198.7,0.00012329,2]
[425133278,1781542250000,-166.66,0.00011581,2]
[425133281,1781542250000,-166.66,0.00011996,2]
[425133275,1781542250000,-2841.53,0.00011425,2]
[425133280,1781542250000,-2000.0,0.00011789,2]
[425133277,1781542250000,-160.16,0.0001154,2]
[425133276,1781542250000,-5793.67,0.00011425,2]
[425133279,1781542250000,-166.66,0.00011789,2]
[425133282,1781542250000,-2193.82,0.00012055,2]
[425133288,1781542250000,-10049.65,0.00012893,2]
[425133287,1781542250000,-1600.0,0.00012562,2]
[425133285,1781542250000,-22180.57164718,0.00012518,2]
[425133286,1781542250000,-736.0,0.00012549,2]
[425133265,1781542250000,-166.66,0.00010959,2]
[425133283,1781542250000,-162.54,0.00012121,2]
[425133263,1781542250000,-150.0,0.00010959,2]
[425133291,1781542250000,-162.54,0.00013333,2]
[425133256,1781542250000,-1240.91,0.00010529,2]
[425133239,1781542250000,-2000.0,9.431e-05,2]
[425133240,1781542250000,-216.09656886,9.442e-05,2]
[425133242,1781542250000,-160.16,9.905e-05,2]
[425133249,1781542250000,-156.81025519,0.00010352,2]
[425133241,1781542250000,-1523.09,9.721e-05,2]
[425133248,1781542250000,-500.0,0.00010346,2]
[425133246,1781542250000,-1600.0,0.00010278,2]
[425133245,1781542250000,-1240.91,0.00010278,2]
[425133243,1781542250000,-165.74218476,0.0001,2]
[425133247,1781542250000,-446.90917335,0.00010346,2]
[425133289,1781542250000,-2000.0,0.00012968,2]
[425133250,1781542250000,-160.0,0.00010367,2]
[425133251,1781542250000,-255.0,0.00010371,2]
[425133252,1781542250000,-250.0,0.00010371,2]
[425133257,1781542250000,-896.5452722,0.00010584,2]
[425133258,1781542250000,-2000.0,0.0001061,2]
[425133259,1781542250000,-1240.91,0.00010779,2]
[425133262,1781542250000,-4383.0,0.00010937,2]
[425133260,1781542250000,-1358.39429808,0.000109,2]
[425133253,1781542250000,-160.16,0.0001045,2]
[425133254,1781542250000,-154.76273733,0.00010485,2]
[425133261,1781542250000,-162.54,0.00010909,2]
[425133255,1781542250000,-191.28130933,0.00010485,2]
[425133264,1781542250000,-150.0,0.00010959,2]
[425133244,1781542250000,-1240.91,0.00010027,2]
[425133300,1781542250000,-502.62322906,0.00013698,2]
[425133295,1781542250000,-500.0,0.00013698,2]
[425133330,1781542250000,-500.0,0.00013698,2]
[425133329,1781542250000,-500.0,0.00013698,2]
[425133320,1781542250000,-500.0,0.00013698,2]
[425133322,1781542250000,-500.0,0.00013698,2]
[425133290,1781542250000,-500.0,0.00013243,2]
[425133327,1781542250000,-500.0,0.00013698,2]
[425133328,1781542250000,-500.0,0.00013698,2]
[425133324,1781542250000,-536.73147534,0.00013698,2]
[425133325,1781542250000,-500.0,0.00013698,2]
[425133326,1781542250000,-259.40265933,0.00013698,2]
[425133338,1781542250000,-500.0,0.00013698,2]
[425133321,1781542250000,-494.24,0.00013698,2]
[425133335,1781542250000,-500.0,0.00013698,2]
[425133332,1781542250000,-500.0,0.00013698,2]
[425133331,1781542250000,-500.0,0.00013698,2]
[425133340,1781542250000,-500.0,0.00013698,2]
[425133341,1781542250000,-500.0,0.00013698,2]
[425133334,1781542250000,-500.0,0.00013698,2]
[425133336,1781542250000,-500.0,0.00013698,2]
[425133337,1781542250000,-500.0,0.00013698,2]
[425133339,1781542250000,-500.0,0.00013698,2]
[425133343,1781542250000,-500.0,0.00013698,2]
[425133342,1781542250000,-500.0,0.00013698,2]
[425133344,1781542250000,-315.0,0.00013699,2]
[425133333,1781542250000,-500.0,0.00013698,2]
[425133319,1781542250000,-500.0,0.00013698,2]
[425133323,1781542250000,-500.0,0.00013698,2]
[425133316,1781542250000,-500.0,0.00013698,2]
[425133293,1781542250000,-313.1,0.00013562,2]
[425133294,1781542250000,-1526.12,0.00013661,2]
[425133292,1781542250000,-1358.39429802,0.00013366,2]
[425133298,1781542250000,-500.0,0.00013698,2]
[425133296,1781542250000,-500.0,0.00013698,2]
[425133317,1781542250000,-500.0,0.00013698,2]
[425133297,1781542250000,-500.0,0.00013698,2]
[425133301,1781542250000,-500.0,0.00013698,2]
[425133299,1781542250000,-501.67141008,0.00013698,2]
[425133306,1781542250000,-500.0,0.00013698,2]
[425133307,1781542250000,-500.0,0.00013698,2]
[425133305,1781542250000,-500.0,0.00013698,2]
[425133304,1781542250000,-500.0,0.00013698,2]
[425133308,1781542250000,-500.0,0.00013698,2]
[425133314,1781542250000,-500.0,0.00013698,2]
[425133312,1781542250000,-500.0,0.00013698,2]
[425133318,1781542250000,-500.0,0.00013698,2]
[425133315,1781542250000,-500.0,0.00013698,2]
[425133311,1781542250000,-500.0,0.00013698,2]
[425133310,1781542250000,-500.0,0.00013698,2]
[425133309,1781542250000,-500.0,0.00013698,2]
[425133302,1781542250000,-500.0,0.00013698,2]
[425133303,1781542250000,-500.0,0.00013698,2]
[425133313,1781542250000,-500.0,0.00013698,2]
[425133362,1781542251000,-313.1,0.00014293,2]
[425133372,1781542251000,-305.92,0.00014561,2]
[425133364,1781542251000,-313.1,0.00014361,2]
[425133365,1781542251000,-313.1,0.00014426,2]
[425133368,1781542251000,-162.54,0.00014545,2]
[425133369,1781542251000,-313.1,0.00014547,2]
[425133374,1781542251000,-315.32,0.00014624,2]
[425133371,1781542251000,-22180.57164718,0.00014551,2]
[425133367,1781542251000,-377.25399869,0.00014504,2]
[425133373,1781542251000,-315.32,0.00014614,2]
[425133366,1781542251000,-313.1,0.00014488,2]
[425133375,1781542251000,-5330.75,0.00014999,2]
[425133356,1781542251000,-313.1,0.0001422,2]
[425133370,1781542251000,-317.42,0.00014549,2]
[425133357,1781542251000,-452.912632,0.0001426,2]
[425133376,1781542251000,-300.0,0.00015,2]
[425133358,1781542251000,-342.7235,0.00014263,2]
[425133346,1781542251000,-1600.0,0.00013704,2]
[425133345,1781542251000,-311.0,0.00013699,2]
[425133347,1781542251000,-313.1,0.00013727,2]
[425133348,1781542251000,-1252.0,0.00013803,2]
[425133350,1781542251000,-313.1,0.00013961,2]
[425133349,1781542251000,-313.1,0.00013854,2]
[425133359,1781542251000,-457.867455,0.00014263,2]
[425133351,1781542251000,-250.0,0.00014,2]
[425133352,1781542251000,-313.1,0.00014056,2]
[425133354,1781542251000,-317.42,0.00014143,2]
[425133355,1781542251000,-2000.0,0.00014147,2]
[425133360,1781542251000,-434.09029,0.00014263,2]
[425133361,1781542251000,-216.884584,0.00014263,2]
[425133363,1781542251000,-179.271955,0.00014322,2]
[425133353,1781542251000,-313.1,0.00014141,2]
[425133377,1781542251000,-6285.49,0.00015028,2]
[425133399,1781542251000,-999.99,0.00016116,2]
[425133378,1781542251000,-3399.32669859,0.00015031,2]
[425133396,1781542251000,-191797.93678793,0.00016116,2]
[425133411,1781542251000,-188.0144181,0.000171,2]
[425133401,1781542251000,-299.99,0.00016116,4]
[425133400,1781542251000,-424.06,0.00016116,2]
[425133405,1781542251000,-406.63915903,0.00016194,2]
[425133404,1781542251000,-3882.23,0.00016116,2]
[425133398,1781542251000,-5279.76978932,0.00016116,2]
[425133403,1781542251000,-2418.66,0.00016116,2]
[425133407,1781542251000,-22180.57164718,0.00016583,2]
[425133406,1781542251000,-1358.39429802,0.00016246,2]
[425133402,1781542251000,-4999.99,0.00016116,2]
[425133408,1781542251000,-505.0,0.00016707,2]
[425133412,1781542251000,-4693.16812378,0.00017425,2]
[425133387,1781542251000,-151.0,0.00016011,2]
[425133410,1781542251000,-188.0144181,0.00017,2]
[425133397,1781542251000,-7290.70342275,0.00016116,2]
[425133409,1781542251000,-188.0144181,0.000168,2]
[425133395,1781542251000,-521.9,0.00016116,2]
[425133393,1781542251000,-9999.99,0.00016116,2]
[425133382,1781542251000,-500.0,0.0001526,2]
[425133384,1781542251000,-326.910194,0.00015794,2]
[425133385,1781542251000,-253.60306,0.00015794,2]
[425133379,1781542251000,-150.0,0.00015068,2]
[425133380,1781542251000,-2129.0,0.00015189,2]
[425133383,1781542251000,-150.99,0.0001531,2]
[425133381,1781542251000,-1000.0,0.00015212,2]
[425133390,1781542251000,-500.0,0.00016115,2]
[425133392,1781542251000,-9999.99,0.00016116,2]
[425133389,1781542251000,-200.72513036,0.00016011,2]
[425133394,1781542251000,-1199.07,0.00016116,2]
[425133388,1781542251000,-156.587,0.00016011,2]
[425133391,1781542251000,-9999.99,0.00016116,2]
[425133386,1781542251000,-300.0,0.00016,2]
[425133433,1781542252000,-1223.0,0.0002,2]
[425133437,1781542252000,-1275.0,0.00020023,2]
[425133443,1781542252000,-500.0,0.00020466,2]
[425133434,1781542252000,-2783.0,0.0002,2]
[425133436,1781542252000,-165.499,0.00020023,2]
[425133435,1781542252000,-3558.0,0.00020023,2]
[425133439,1781542252000,-383.0,0.00020023,2]
[425133438,1781542252000,-1359.0,0.00020023,2]
[425133448,1781542252000,-151.0,0.00021,2]
[425133441,1781542252000,-150.0,0.00020023,2]
[425133440,1781542252000,-1228.0,0.00020023,2]
[425133444,1781542252000,-20873.40824933,0.00020649,2]
[425133446,1781542252000,-235.0,0.00021,2]
[425133447,1781542252000,-157.0,0.00021,2]
[425133449,1781542252000,-1223.0,0.00021,2]
[425133430,1781542252000,-235.0,0.0002,2]
[425133442,1781542252000,-311.139121,0.000201,10]
[425133431,1781542252000,-157.0,0.0002,2]
[425133421,1781542252000,-281.0100938,0.00019214,2]
[425133429,1781542252000,-400.0,0.0002,2]
[425133414,1781542252000,-22180.57164718,0.00018616,2]
[425133450,1781542252000,-2783.0,0.00021,2]
[425133415,1781542252000,-1358.39429802,0.00019127,2]
[425133413,1781542252000,-350.0,0.00018,2]
[425133416,1781542252000,-151.0,0.00019214,2]
[425133419,1781542252000,-151.0,0.00019214,2]
[425133418,1781542252000,-151.0,0.00019214,2]
[425133423,1781542252000,-3437.0,0.00019518,5]
[425133420,1781542252000,-151.0,0.00019214,2]
[425133422,1781542252000,-500.0,0.00019347,2]
[425133427,1781542252000,-1000.0,0.00019717,2]
[425133432,1781542252000,-151.0,0.0002,2]
[425133424,1781542252000,-2746.0,0.00019518,5]
[425133425,1781542252000,-570.34045387,0.00019627,2]
[425133426,1781542252000,-1000.0,0.00019627,2]
[425133428,1781542252000,-251.673083,0.0002,2]
[425133417,1781542252000,-151.0,0.00019214,2]
[425133452,1781542252000,-235.0,0.00022,2]
[425133464,1781542252000,-235.0,0.00023,2]
[425133445,1781542252000,-1307.16339785,0.00020649,2]
[425133472,1781542252000,-383.0,0.00023023,2]
[425133477,1781542252000,-198.7,0.00023425,2]
[425133474,1781542252000,-150.0,0.00023023,2]
[425133473,1781542252000,-1228.0,0.00023023,2]
[425133479,1781542252000,-5921.13880256,0.00023621,5]
[425133478,1781542252000,-250.0,0.00023562,5]
[425133481,1781542252000,-157.0,0.00024,2]
[425133482,1781542252000,-1223.0,0.00024,2]
[425133480,1781542252000,-235.0,0.00024,2]
[425133451,1781542252000,-5000.0,0.00021918,2]
[425133485,1781542252000,-4510.04097159,0.00024031,7]
[425133483,1781542252000,-2783.0,0.00024,2]
[425133486,1781542252000,-932.0893345,0.00024031,7]
[425133487,1781542252000,-674.06681493,0.00024031,7]
[425133488,1781542252000,-2854.67981915,0.00024031,7]
[425133489,1781542252000,-1148.94018085,0.00024031,7]
[425133490,1781542252000,-380.68182096,0.00024031,7]
[425133471,1781542252000,-1359.0,0.00023023,2]
[425133475,1781542252000,-166.08457987,0.0002326,21]
[425133484,1781542252000,-500.0,0.0002403,2]
[425133476,1781542252000,-235.91023219,0.0002338,2]
[425133470,1781542252000,-1275.0,0.00023023,2]
[425133454,1781542252000,-157.0,0.00022,2]
[425133455,1781542252000,-153.0,0.00022,2]
[425133453,1781542252000,-860.58,0.00022,2]
[425133463,1781542252000,-191.28130931,0.00022693,2]
[425133462,1781542252000,-22180.57164718,0.00022682,2]
[425133456,1781542252000,-1223.0,0.00022,2]
[425133457,1781542252000,-2783.0,0.00022,2]
[425133465,1781542252000,-157.0,0.00023,2]
[425133461,1781542252000,-300.0,0.000226,7]
[425133459,1781542252000,-1358.39429802,0.00022008,2]
[425133460,1781542252000,-385.75,0.00022466,2]
[425133466,1781542252000,-1223.0,0.00023,2]
[425133469,1781542252000,-3558.0,0.00023023,2]
[425133468,1781542252000,-175.0,0.00023014,7]
[425133458,1781542252000,-174.0,0.00022,2]
[425133467,1781542252000,-2783.0,0.00023,2]
[425133506,1781542253000,-230.95,0.00024658,2]
[425133509,1781542253000,-34263.84780501,0.0002475,10]
[425133504,1781542253000,-32032.143,0.00024531,7]
[425133502,1781542253000,-2125.55614235,0.00024312,2]
[425133511,1781542253000,-1358.39429802,0.00024889,2]
[425133510,1781542253000,-1852.42,0.00024804,2]
[425133512,1781542253000,-230.95,0.00024946,7]
[425133515,1781542253000,-1242.0,0.00025,2]
[425133507,1781542253000,-860.58,0.00024697,7]
[425133505,1781542253000,-1000.0,0.00024658,2]
[425133495,1781542253000,-14296.06827266,0.00024031,7]
[425133500,1781542253000,-5604.19535025,0.00024031,7]
[425133503,1781542253000,-3205.19385765,0.00024312,2]
[425133498,1781542253000,-1849.10610877,0.00024031,7]
[425133499,1781542253000,-10706.5620431,0.00024031,7]
[425133497,1781542253000,-1006.19246753,0.00024031,7]
[425133496,1781542253000,-4508.2302086,0.00024031,7]
[425133494,1781542253000,-6078.0,0.00023023,2]
[425133493,1781542253000,-5622.68226687,0.00020023,2]
[425133492,1781542253000,-455.31773313,0.00020023,2]
[425133491,1781542253000,-250.31325992,0.00012458,2]
[425133516,1781542253000,-2797.10563127,0.00025,2]
[425133501,1781542253000,-337.53,0.0002411,2]
[425133514,1781542253000,-171.0,0.00025,2]
[425133508,1781542253000,-22180.57164718,0.00024714,2]
[425133513,1781542253000,-253.0,0.00025,2]
[425133517,1781542253000,-167.22,0.00025,2]
[425133541,1781542253000,-860.58,0.00027393,7]
[425133540,1781542253000,-573.4,0.00027386,2]
[425133537,1781542253000,-161.95971368,0.00027293,7]
[425133538,1781542253000,-200.09528111,0.00027293,7]
[425133535,1781542253000,-162.95525234,0.00027293,5]
[425133536,1781542253000,-156.49791055,0.00027293,2]
[425133534,1781542253000,-184.70469543,0.00027293,7]
[425133531,1781542253000,-502.0,0.00027041,2]
[425133533,1781542253000,-150.0,0.00027123,7]
[425133532,1781542253000,-150.0,0.00027123,7]
[425133529,1781542253000,-22180.57164718,0.00026747,2]
[425133539,1781542253000,-197.18017601,0.00027293,7]
[425133525,1781542253000,-6078.0,0.00026023,2]
[425133528,1781542253000,-454.0,0.00026618,2]
[425133519,1781542253000,-230.95,0.00025523,2]
[425133520,1781542253000,-3558.0,0.00026023,2]
[425133522,1781542253000,-1359.0,0.00026023,2]
[425133521,1781542253000,-1275.0,0.00026023,2]
[425133524,1781542253000,-1228.0,0.00026023,2]
[425133526,1781542253000,-241.09,0.00026027,7]
[425133530,1781542253000,-332.068,0.000268,2]
[425133527,1781542253000,-447.0,0.00026618,2]
[425133523,1781542253000,-383.0,0.00026023,2]
[425133518,1781542253000,-230.95,0.00025234,30]
[425133567,1781542254000,-500.0,0.00028194,2]
[425133568,1781542254000,-500.0,0.00028194,2]
[425133569,1781542254000,-500.0,0.00028194,2]
[425133563,1781542254000,-153.96,0.00028192,2]
[425133564,1781542254000,-500.0,0.00028194,2]
[425133572,1781542254000,-500.0,0.00028194,2]
[425133570,1781542254000,-500.0,0.00028194,2]
[425133571,1781542254000,-500.0,0.00028194,2]
[425133581,1781542254000,-500.0,0.00028194,2]
[425133574,1781542254000,-500.0,0.00028194,2]
[425133578,1781542254000,-500.0,0.00028194,2]
[425133582,1781542254000,-500.0,0.00028194,2]
[425133580,1781542254000,-500.0,0.00028194,2]
[425133575,1781542254000,-500.0,0.00028194,2]
[425133577,1781542254000,-500.0,0.00028194,2]
[425133579,1781542254000,-500.0,0.00028194,2]
[425133565,1781542254000,-500.0,0.00028194,2]
[425133573,1781542254000,-500.0,0.00028194,2]
[425133566,1781542254000,-500.0,0.00028194,2]
[425133550,1781542254000,-151.0,0.00027459,2]
[425133555,1781542254000,-570.45,0.00028,7]
[425133543,1781542254000,-159.76325523,0.00027397,2]
[425133547,1781542254000,-570.45,0.000274,7]
[425133546,1781542254000,-860.91,0.000274,7]
[425133542,1781542254000,-500.0,0.00027396,2]
[425133544,1781542254000,-1500.0,0.00027397,2]
[425133549,1781542254000,-151.5,0.00027459,2]
[425133548,1781542254000,-151.0,0.00027459,2]
[425133545,1781542254000,-300.0,0.00027397,2]
[425133576,1781542254000,-500.0,0.00028194,2]
[425133557,1781542254000,-223.682,0.00028007,18]
[425133561,1781542254000,-153.96,0.00028127,30]
[425133558,1781542254000,-153.96,0.00028062,7]
[425133560,1781542254000,-769.05,0.00028118,30]
[425133559,1781542254000,-1000.0,0.000281,2]
[425133553,1781542254000,-860.91,0.000279,7]
[425133552,1781542254000,-1288.99,0.00027789,2]
[425133551,1781542254000,-1358.39429802,0.00027769,2]
[425133554,1781542254000,-1288.99,0.00027984,2]
[425133556,1781542254000,-1264.471,0.00028007,18]
[425133562,1781542254000,-150.0,0.0002818,2]
[425133584,1781542254000,-500.0,0.00028194,2]
[425133583,1781542254000,-500.0,0.00028194,2]
[425133587,1781542254000,-222.82556615,0.00028194,2]
[425133611,1781542254000,-500.0,0.00028194,2]
[425133607,1781542254000,-500.0,0.00028194,2]
[425133612,1781542254000,-500.0,0.00028194,2]
[425133613,1781542254000,-500.0,0.00028194,2]
[425133615,1781542254000,-500.0,0.00028194,2]
[425133616,1781542254000,-500.0,0.00028194,2]
[425133619,1781542254000,-500.0,0.00028194,2]
[425133621,1781542254000,-500.0,0.00028194,2]
[425133618,1781542254000,-500.0,0.00028194,2]
[425133614,1781542254000,-500.0,0.00028194,2]
[425133617,1781542254000,-500.0,0.00028194,2]
[425133622,1781542254000,-463.20304759,0.00028194,2]
[425133624,1781542254000,-436.29067532,0.00028194,2]
[425133626,1781542254000,-229.09593232,0.00028194,2]
[425133625,1781542254000,-63.70932468,0.00028194,2]
[425133623,1781542254000,-36.79695241,0.00028194,2]
[425133627,1781542254000,-270.90406768,0.00028194,2]
[425133628,1781542254000,-130.29093232,0.00028194,2]
[425133585,1781542254000,-500.0,0.00028194,2]
[425133610,1781542254000,-500.0,0.00028194,2]
[425133609,1781542254000,-500.0,0.00028194,2]
[425133620,1781542254000,-500.0,0.00028194,2]
[425133606,1781542254000,-500.0,0.00028194,2]
[425133586,1781542254000,-277.17443385,0.00028194,2]
[425133608,1781542254000,-500.0,0.00028194,2]
[425133588,1781542254000,-500.0,0.00028194,2]
[425133589,1781542254000,-306.18085443,0.00028194,2]
[425133590,1781542254000,-152.81,0.00028005,2]
[425133592,1781542254000,-152.81,0.00028134,30]
[425133593,1781542254000,-127.89426985,0.00028194,2]
[425133596,1781542254000,-249.46887572,0.00028194,2]
[425133594,1781542254000,-65.92487572,0.00028194,2]
[425133601,1781542254000,-405.28705655,0.00028194,2]
[425133591,1781542254000,-152.81,0.00028069,7]
[425133602,1781542254000,-36.79695241,0.00028194,2]
[425133597,1781542254000,-500.0,0.00028194,2]
[425133598,1781542254000,-500.0,0.00028194,2]
[425133599,1781542254000,-500.0,0.00028194,2]
[425133600,1781542254000,-57.91599104,0.00028194,2]
[425133604,1781542254000,-500.0,0.00028194,2]
[425133605,1781542254000,-500.0,0.00028194,2]
[425133595,1781542254000,-250.53112428,0.00028194,2]
[425133603,1781542254000,-500.0,0.00028194,2]
[425133661,1781542255000,-733.0,0.00028208,2]
[425133659,1781542255000,-575.3,0.00028208,2]
[425133660,1781542255000,-500.0,0.00028208,2]
[425133658,1781542255000,-185.13,0.00028208,2]
[425133655,1781542255000,-482.28,0.00028208,2]
[425133654,1781542255000,-185.13,0.00028201,2]
[425133662,1781542255000,-187.04340916,0.00028213,2]
[425133664,1781542255000,-163.92,0.00028216,30]
[425133657,1781542255000,-185.13,0.00028208,2]
[425133663,1781542255000,-313.69,0.00028213,2]
[425133672,1781542255000,-151.0,0.00028262,2]
[425133666,1781542255000,-151.24,0.00028262,2]
[425133673,1781542255000,-151.0,0.00028262,2]
[425133668,1781542255000,-151.0,0.00028262,2]
[425133669,1781542255000,-151.0,0.00028262,2]
[425133667,1781542255000,-151.0,0.00028262,2]
[425133671,1781542255000,-151.0,0.00028262,2]
[425133670,1781542255000,-151.0,0.00028262,2]
[425133674,1781542255000,-152.81,0.00028263,7]
[425133652,1781542255000,-596.49,0.00028201,2]
[425133665,1781542255000,-153.96,0.00028257,7]
[425133653,1781542255000,-644.14,0.00028201,2]
[425133631,1781542255000,-500.0,0.00028194,2]
[425133647,1781542255000,-500.0,0.00028194,2]
[425133675,1781542255000,-151.0,0.00028268,2]
[425133629,1781542255000,-369.70906768,0.00028194,2]
[425133630,1781542255000,-500.0,0.00028194,2]
[425133636,1781542255000,-500.0,0.00028194,2]
[425133637,1781542255000,-500.0,0.00028194,2]